[Event "Nové Hrady - Rapid A"]
[Site "Nové Hrady, Czech Republic"]
[Date "2024.08.10"]
[Round "6.4"]
[White "Rausch, Rudolf"]
[Black "Borecký, Andrej"]
[Result "1-0"]
[TimeControl "2x15min+5s"]
[WhiteFideId "1639455"]
[BlackFideId "23752670"]
[WhiteElo "1838"]
[BlackElo "1618"]

1. d4 {[%clk 00:15:08]} {[%emt 00:00:02]} Nf6 {[%clk 00:15:07]} {[%emt
00:00:03]} 2. c4 {[%clk 00:15:09]} {[%emt 00:00:05]} c5 {[%clk 00:15:09]}
{[%emt 00:00:03]} 3. e3 {[%clk 00:14:47]} {[%emt 00:00:27]} g6 {[%clk
00:15:02]} {[%emt 00:00:11]} 4. Nc3 {[%clk 00:14:44]} {[%emt 00:00:09]} Bg7
{[%clk 00:15:04]} {[%emt 00:00:02]} 5. Nf3 {[%clk 00:14:41]} {[%emt 00:00:09]}
O-O {[%clk 00:14:26]} {[%emt 00:00:42]} 6. Be2 {[%clk 00:14:43]} {[%emt
00:00:03]} d6 {[%clk 00:14:05]} {[%emt 00:00:27]} 7. O-O {[%clk 00:14:44]}
{[%emt 00:00:03]} e6 {[%clk 00:13:49]} {[%emt 00:00:22]} 8. Rb1 {[%clk
00:13:53]} {[%emt 00:00:55]} b6 {[%clk 00:12:58]} {[%emt 00:00:56]} 9. Nd2
{[%clk 00:13:42]} {[%emt 00:00:16]} Bb7 {[%clk 00:12:30]} {[%emt 00:00:34]} 10.
Bf3 {[%clk 00:13:41]} {[%emt 00:00:04]} d5 {[%clk 00:10:53]} {[%emt 00:01:43]}
11. cxd5 {[%clk 00:13:31]} {[%emt 00:00:14]} exd5 {[%clk 00:10:55]} {[%emt
00:00:04]} 12. dxc5 {[%clk 00:13:22]} {[%emt 00:00:13]} bxc5 {[%clk 00:10:53]}
{[%emt 00:00:08]} 13. Qb3 {[%clk 00:13:01]} {[%emt 00:00:27]} Qd7 {[%clk
00:06:43]} {[%emt 00:04:14]} 14. a3 {[%clk 00:12:12]} {[%emt 00:00:54]} Rd8
{[%clk 00:06:22]} {[%emt 00:00:26]} 15. Qc2 {[%clk 00:11:30]} {[%emt 00:00:46]}
Nc6 {[%clk 00:05:54]} {[%emt 00:00:35]} 16. b4 {[%clk 00:11:19]} {[%emt
00:00:16]} c4 {[%clk 00:05:15]} {[%emt 00:00:44]} 17. Ne2 {[%clk 00:10:51]}
{[%emt 00:00:32]} Ne5 {[%clk 00:04:53]} {[%emt 00:00:27]} 18. Nd4 {[%clk
00:10:17]} {[%emt 00:00:40]} Nxf3+ {[%clk 00:04:01]} {[%emt 00:00:57]} 19.
N2xf3 {[%clk 00:10:15]} {[%emt 00:00:05]} Ne4 {[%clk 00:03:46]} {[%emt
00:00:22]} 20. Bb2 {[%clk 00:10:11]} {[%emt 00:00:07]} a5 {[%clk 00:03:19]}
{[%emt 00:00:34]} 21. b5 {[%clk 00:08:42]} {[%emt 00:01:33]} a4 {[%clk
00:02:15]} {[%emt 00:01:10]} 22. Bc1 {[%clk 00:06:37]} {[%emt 00:02:08]} Nc5
{[%clk 00:01:57]} {[%emt 00:00:25]} 23. Bd2 {[%clk 00:05:59]} {[%emt 00:00:41]}
Nb3 {[%clk 00:01:45]} {[%emt 00:00:18]} 24. Bc3 {[%clk 00:05:19]} {[%emt
00:00:45]} Rab8 {[%clk 00:01:14]} {[%emt 00:00:36]} 25. h3 {[%clk 00:04:18]}
{[%emt 00:01:06]} Bc8 {[%clk 00:00:51]} {[%emt 00:00:28]} 26. Nc6 {[%clk
00:04:08]} {[%emt 00:00:15]} Rxb5 {[%clk 00:00:33]} {[%emt 00:00:24]} 27. Nxd8
{[%clk 00:04:09]} {[%emt 00:00:03]} Qxd8 {[%clk 00:00:37]} 28. Bxg7 {[%clk
00:04:04]} {[%emt 00:00:11]} Kxg7 {[%clk 00:00:40]} {[%emt 00:00:02]} 29. Qc3+
{[%clk 00:03:54]} {[%emt 00:00:15]} Kg8 {[%clk 00:00:40]} {[%emt 00:00:04]} 30.
Rfd1 {[%clk 00:03:21]} {[%emt 00:00:38]} Bf5 {[%clk 00:00:37]} {[%emt
00:00:09]} 31. Rb2 {[%clk 00:03:05]} {[%emt 00:00:21]} Be4 {[%clk 00:00:11]}
{[%emt 00:00:32]} 32. Nd2 {[%clk 00:02:10]} {[%emt 00:00:59]} Bf5 {[%clk
00:00:15]} {[%emt 00:00:02]} 33. Nxb3 {[%clk 00:01:17]} {[%emt 00:00:57]} axb3
{[%clk 00:00:11]} {[%emt 00:00:09]} 34. Qxc4 {[%clk 00:01:12]} {[%emt
00:00:09]} Ra5 {[%clk 00:00:06]} {[%emt 00:00:11]} 35. Qxb3 {[%clk 00:01:06]}
{[%emt 00:00:11]} Qg5 {[%clk 00:00:07]} {[%emt 00:00:05]} 36. Qb8+ {[%clk
00:01:01]} {[%emt 00:00:09]} Kg7 {[%clk 00:00:10]} {[%emt 00:00:03]} 37. Qe5+
{[%clk 00:00:53]} {[%emt 00:00:10]} Ra6 {[%clk 00:00:13]} {[%emt 00:00:23]} 38.
g3+ {[%clk 00:01:13]} {[%emt 00:01:28]} Rf6 {[%clk 00:00:12]} 39. h4 {[%clk
00:01:10]} {[%emt 00:00:14]} Qh6 {[%clk 00:00:12]} 40. Rxd5 {[%clk 00:00:59]}
{[%emt 00:00:20]} Bg4 1-0

[Event "Nové Hrady - Rapid A"]
[Site "Nové Hrady, Czech Republic"]
[Date "2024.08.10"]
[Round "6.5"]
[White "Rendl, Luboš"]
[Black "Šebesta, Marek"]
[Result "1-0"]
[TimeControl "2x15min+5s"]
[WhiteFideId "23750197"]
[BlackFideId "23765119"]
[WhiteElo "1848"]
[BlackElo "1707"]

1. e4 {[%clk 00:15:02]} {[%emt 00:00:07]} e5 {[%clk 00:15:09]} 2. Nf3 {[%clk
00:15:07]} {[%emt 00:00:02]} Nc6 {[%clk 00:15:13]} {[%emt 00:00:02]} 3. Bb5
{[%clk 00:15:02]} {[%emt 00:00:09]} a6 {[%clk 00:15:17]} 4. Ba4 {[%clk
00:15:04]} {[%emt 00:00:04]} Nf6 {[%clk 00:15:19]} {[%emt 00:00:03]} 5. O-O
{[%clk 00:15:05]} {[%emt 00:00:03]} b5 {[%clk 00:15:21]} {[%emt 00:00:04]} 6.
Bb3 {[%clk 00:15:09]} Bc5 {[%clk 00:15:24]} {[%emt 00:00:02]} 7. Re1 {[%clk
00:15:02]} {[%emt 00:00:10]} O-O {[%clk 00:15:18]} {[%emt 00:00:11]} 8. c3
{[%clk 00:15:06]} {[%emt 00:00:02]} d6 {[%clk 00:14:34]} {[%emt 00:00:49]} 9.
d4 {[%clk 00:15:08]} {[%emt 00:00:03]} exd4 {[%clk 00:14:26]} {[%emt 00:00:13]}
10. cxd4 {[%clk 00:15:09]} {[%emt 00:00:05]} Bb4 {[%clk 00:14:05]} {[%emt
00:00:26]} 11. Bd2 {[%clk 00:14:30]} {[%emt 00:00:43]} Bxd2 {[%clk 00:13:27]}
{[%emt 00:00:43]} 12. Qxd2 {[%clk 00:14:25]} {[%emt 00:00:10]} Re8 {[%clk
00:13:12]} {[%emt 00:00:19]} 13. Bc2 {[%clk 00:13:56]} {[%emt 00:00:35]} Bg4
{[%clk 00:12:04]} {[%emt 00:01:12]} 14. Qc3 {[%clk 00:10:16]} {[%emt 00:03:47]}
Ne7 {[%clk 00:11:06]} {[%emt 00:01:02]} 15. Nbd2 {[%clk 00:10:03]} {[%emt
00:00:18]} Ng6 {[%clk 00:10:25]} {[%emt 00:00:47]} 16. h3 {[%clk 00:08:07]}
{[%emt 00:02:00]} Bxf3 {[%clk 00:10:04]} {[%emt 00:00:25]} 17. Nxf3 {[%clk
00:08:10]} {[%emt 00:00:04]} c5 {[%clk 00:09:56]} {[%emt 00:00:12]} 18. dxc5
{[%clk 00:05:54]} {[%emt 00:02:21]} dxc5 {[%clk 00:10:00]} {[%emt 00:00:01]} 19.
Rad1 {[%clk 00:05:56]} {[%emt 00:00:03]} Qb6 {[%clk 00:09:40]} {[%emt
00:00:21]} 20. e5 {[%clk 00:05:37]} {[%emt 00:00:28]} Nh5 {[%clk 00:08:05]}
{[%emt 00:01:40]} 21. Rd6 {[%clk 00:04:20]} {[%emt 00:01:22]} Qc7 {[%clk
00:07:34]} {[%emt 00:00:34]} 22. Be4 {[%clk 00:02:30]} {[%emt 00:01:57]} Nxe5
{[%emt 00:00:04]} 23. Nxe5 {[%clk 00:02:26]} {[%emt 00:00:06]} Qxd6 {[%clk
00:07:40]} {[%emt 00:00:02]} 24. Bxa8 {[%clk 00:02:26]} {[%emt 00:00:06]} Rxa8
{[%clk 00:07:24]} {[%emt 00:00:20]} 25. Qf3 {[%clk 00:02:27]} {[%emt 00:00:04]}
Rf8 {[%clk 00:06:26]} {[%emt 00:01:04]} 26. Qxh5 {[%clk 00:02:14]} {[%emt
00:00:17]} Qd2 {[%clk 00:06:09]} {[%emt 00:00:23]} 27. Qe2 {[%clk 00:01:11]}
{[%emt 00:01:08]} Qd5 {[%clk 00:05:47]} {[%emt 00:00:25]} 28. a3 {[%clk
00:00:40]} {[%emt 00:00:38]} Re8 {[%clk 00:05:51]} 29. Rd1 {[%clk 00:00:33]}
{[%emt 00:00:13]} Qxe5 {[%clk 00:05:52]} {[%emt 00:00:04]} 30. Qxe5 {[%clk
00:00:37]} 1-0

[Event "Nové Hrady - Rapid A"]
[Site "Nové Hrady, Czech Republic"]
[Date "2024.08.10"]
[Round "6.8"]
[White "Černý, Zbyšek"]
[Black "Brabcová, Nikola"]
[Result "0-1"]
[TimeControl "2x15min+5s"]
[WhiteFideId "23739380"]
[BlackFideId "23739371"]
[WhiteElo "1560"]
[BlackElo "1529"]

1. d4 {[%clk 00:15:06]} {[%emt 00:00:03]} Nf6 {[%clk 00:15:08]} {[%emt
00:00:03]} 2. c4 {[%clk 00:15:08]} {[%emt 00:00:03]} g6 {[%clk 00:15:11]} 3.
Nc3 {[%clk 00:15:11]} {[%emt 00:00:03]} Bg7 {[%clk 00:15:13]} {[%emt 00:00:03]}
4. Nf3 {[%clk 00:15:11]} {[%emt 00:00:06]} d6 {[%clk 00:15:15]} {[%emt
00:00:03]} 5. e3 {[%clk 00:15:08]} {[%emt 00:00:07]} O-O {[%clk 00:15:14]}
{[%emt 00:00:06]} 6. Bd3 {[%clk 00:15:00]} {[%emt 00:00:14]} e6 {[%clk
00:14:51]} {[%emt 00:00:27]} 7. O-O {[%clk 00:15:00]} {[%emt 00:00:05]} Nc6
{[%clk 00:14:53]} {[%emt 00:00:03]} 8. a3 {[%clk 00:14:49]} {[%emt 00:00:16]}
e5 {[%clk 00:14:46]} {[%emt 00:00:12]} 9. d5 {[%clk 00:14:45]} {[%emt
00:00:08]} Ne7 {[%clk 00:14:46]} {[%emt 00:00:05]} 10. e4 {[%clk 00:14:44]}
{[%emt 00:00:06]} Ne8 {[%clk 00:14:34]} {[%emt 00:00:18]} 11. b4 {[%clk
00:14:44]} {[%emt 00:00:06]} f5 {[%clk 00:14:37]} 12. Bb2 {[%clk 00:14:43]}
{[%emt 00:00:06]} f4 {[%clk 00:14:38]} {[%emt 00:00:04]} 13. Rc1 {[%clk
00:14:14]} {[%emt 00:00:34]} Nf6 {[%clk 00:14:34]} {[%emt 00:00:08]} 14. Bb1
{[%clk 00:13:51]} {[%emt 00:00:28]} h6 {[%clk 00:14:10]} {[%emt 00:00:30]} 15.
Na4 {[%clk 00:13:33]} {[%emt 00:00:23]} g5 {[%clk 00:13:49]} {[%emt 00:00:25]}
16. c5 {[%clk 00:13:12]} {[%emt 00:00:27]} Ng6 {[%clk 00:12:55]} {[%emt
00:00:59]} 17. h3 {[%clk 00:13:00]} {[%emt 00:00:18]} g4 {[%clk 00:11:22]}
{[%emt 00:01:37]} 18. hxg4 {[%clk 00:11:18]} {[%emt 00:01:47]} Bxg4 {[%clk
00:11:01]} {[%emt 00:00:26]} 19. cxd6 {[%clk 00:09:56]} {[%emt 00:01:27]} cxd6
{[%clk 00:10:45]} {[%emt 00:00:21]} 20. Qd3 {[%clk 00:08:16]} {[%emt 00:01:44]}
Nh5 {[%clk 00:10:01]} {[%emt 00:00:51]} 21. Nh2 {[%clk 00:07:28]} {[%emt
00:00:51]} Qh4 {[%clk 00:08:15]} {[%emt 00:01:52]} 22. Nxg4 {[%clk 00:06:29]}
{[%emt 00:01:04]} Ng3 {[%clk 00:05:40]} {[%emt 00:02:40]} 23. fxg3 {[%clk
00:04:52]} {[%emt 00:01:41]} fxg3 {[%clk 00:05:21]} {[%emt 00:00:25]} 24. Rf3
{[%clk 00:04:16]} {[%emt 00:00:41]} Rxf3 {[%clk 00:04:57]} {[%emt 00:00:29]} 25.
Qxf3 {[%clk 00:03:22]} {[%emt 00:00:59]} Rf8 {[%clk 00:04:47]} {[%emt
00:00:15]} 26. Qe2 {[%clk 00:02:26]} {[%emt 00:00:56]} Rf4 {[%clk 00:04:26]}
{[%emt 00:00:28]} 27. Rc8+ {[%clk 00:01:16]} {[%emt 00:01:17]} Kh7 {[%clk
00:04:16]} {[%emt 00:00:09]} 28. Rc7 {[%clk 00:01:17]} {[%emt 00:00:10]} Rxg4
{[%clk 00:04:05]} {[%emt 00:00:17]} 29. Qd3 {[%clk 00:00:30]} {[%emt 00:00:51]}
Qh2+ {[%clk 00:03:56]} {[%emt 00:00:15]} 30. Kf1 {[%clk 00:00:34]} Qh1+ {[%clk
00:03:54]} {[%emt 00:00:06]} 31. Ke2 {[%clk 00:00:38]} Nf4+ {[%clk 00:03:53]}
{[%emt 00:00:08]} 32. Kd2 {[%clk 00:00:33]} {[%emt 00:00:10]} Nxd3 {[%clk
00:03:32]} {[%emt 00:00:27]} 0-1

[Event "Nové Hrady - Rapid A"]
[Site "Nové Hrady, Czech Republic"]
[Date "2024.08.10"]
[Round "7.1"]
[White "Hák, David"]
[Black "Prinz, Hubert"]
[Result "1-0"]
[TimeControl "2x15min+5s"]
[WhiteFideId "377007"]
[BlackFideId "1639447"]
[WhiteElo "2192"]
[BlackElo "1986"]

1. d4 {[%clk 00:15:08]} Nf6 {[%clk 00:15:04]} {[%emt 00:00:07]} 2. c4 {[%clk
00:15:10]} {[%emt 00:00:03]} d5 {[%clk 00:15:07]} {[%emt 00:00:02]} 3. cxd5
{[%clk 00:15:08]} {[%emt 00:00:08]} Nxd5 {[%clk 00:15:11]} 4. e4 {[%clk
00:15:11]} {[%emt 00:00:02]} Nb6 {[%clk 00:15:15]} 5. Nc3 {[%clk 00:15:12]}
{[%emt 00:00:05]} c6 {[%clk 00:15:19]} 6. Nf3 {[%clk 00:15:14]} {[%emt
00:00:03]} Bg4 {[%clk 00:15:21]} {[%emt 00:00:02]} 7. Be2 {[%clk 00:15:16]}
{[%emt 00:00:04]} e6 {[%clk 00:15:25]} {[%emt 00:00:02]} 8. O-O {[%clk
00:15:17]} {[%emt 00:00:02]} Be7 {[%clk 00:15:29]} 9. h3 {[%clk 00:15:03]}
{[%emt 00:00:21]} Bh5 {[%clk 00:15:32]} {[%emt 00:00:02]} 10. Be3 {[%clk
00:14:25]} {[%emt 00:00:43]} O-O {[%clk 00:15:35]} {[%emt 00:00:02]} 11. Qb3
{[%clk 00:14:10]} {[%emt 00:00:20]} N8d7 {[%clk 00:15:13]} {[%emt 00:00:27]} 12.
Rfd1 {[%clk 00:14:04]} {[%emt 00:00:11]} Qc7 {[%clk 00:15:04]} {[%emt
00:00:14]} 13. Rac1 {[%clk 00:14:07]} {[%emt 00:00:02]} Rac8 {[%clk 00:15:08]}
14. a4 {[%clk 00:14:03]} {[%emt 00:00:10]} a6 {[%clk 00:14:43]} {[%emt
00:00:30]} 15. d5 {[%clk 00:12:49]} {[%emt 00:01:18]} Nc5 {[%clk 00:13:30]}
{[%emt 00:01:18]} 16. Bxc5 {[%clk 00:10:52]} {[%emt 00:02:01]} Bxc5 {[%clk
00:13:32]} {[%emt 00:00:03]} 17. d6 {[%clk 00:10:24]} {[%emt 00:00:34]} Bxd6
{[%clk 00:12:57]} {[%emt 00:00:40]} 18. Rxd6 {[%clk 00:10:18]} {[%emt
00:00:11]} Qxd6 {[%clk 00:12:33]} {[%emt 00:00:29]} 19. Qxb6 {[%clk 00:10:21]}
{[%emt 00:00:02]} Rc7 {[%clk 00:11:35]} {[%emt 00:01:03]} 20. Rd1 {[%clk
00:10:16]} {[%emt 00:00:10]} Qe7 {[%clk 00:11:39]} 21. e5 {[%clk 00:09:47]}
{[%emt 00:00:35]} Rd8 {[%clk 00:11:34]} {[%emt 00:00:09]} 22. Rxd8+ {[%clk
00:09:26]} {[%emt 00:00:27]} Qxd8 {[%clk 00:11:38]} 23. Ne4 {[%clk 00:09:27]}
{[%emt 00:00:04]} h6 {[%clk 00:10:27]} {[%emt 00:01:16]} 24. Nd6 {[%clk
00:09:05]} {[%emt 00:00:28]} Qe7 {[%clk 00:10:26]} {[%emt 00:00:06]} 25. Qc5
{[%clk 00:07:10]} {[%emt 00:02:00]} Bxf3 {[%clk 00:10:07]} {[%emt 00:00:23]} 26.
Bxf3 {[%clk 00:07:12]} {[%emt 00:00:04]} f6 {[%clk 00:10:00]} {[%emt 00:00:12]}
27. Bg4 {[%clk 00:06:19]} {[%emt 00:00:58]} f5 {[%clk 00:06:15]} {[%emt
00:03:50]} 28. Be2 {[%clk 00:06:13]} {[%emt 00:00:11]} g6 {[%clk 00:06:10]}
{[%emt 00:00:10]} 29. Bc4 {[%clk 00:06:05]} {[%emt 00:00:13]} b5 {[%clk
00:05:46]} {[%emt 00:00:29]} 30. Ba2 {[%clk 00:06:05]} {[%emt 00:00:06]} Kh7
{[%clk 00:05:11]} {[%emt 00:00:39]} 31. a5 {[%clk 00:05:48]} {[%emt 00:00:23]}
Qd7 {[%clk 00:04:40]} {[%emt 00:00:35]} 32. Qb6 {[%clk 00:04:45]} {[%emt
00:01:08]} Qg7 {[%clk 00:04:32]} {[%emt 00:00:13]} 33. Ne8 {[%clk 00:04:36]}
{[%emt 00:00:14]} Qxe5 {[%clk 00:04:35]} {[%emt 00:00:02]} 34. Qxc7+ {[%clk
00:04:40]} 1-0

[Event "Nové Hrady - Rapid A"]
[Site "Nové Hrady, Czech Republic"]
[Date "2024.08.10"]
[Round "7.2"]
[White "Garabik, Marek"]
[Black "Dudarec, Elias"]
[Result "1-0"]
[TimeControl "2x15min+5s"]
[WhiteFideId "23717742"]
[BlackFideId "23714930"]
[WhiteElo "1933"]
[BlackElo "1588"]

1. e4 {[%clk 00:15:09]} {[%emt 00:00:02]} e6 {[%clk 00:15:09]} {[%emt
00:00:01]} 2. d4 {[%clk 00:15:13]} d5 {[%clk 00:15:13]} {[%emt 00:00:02]} 3.
exd5 {[%clk 00:15:17]} {[%emt 00:00:01]} exd5 {[%clk 00:15:17]} 4. Nc3 {[%clk
00:15:19]} {[%emt 00:00:04]} Nf6 {[%clk 00:15:18]} {[%emt 00:00:04]} 5. Bg5
{[%clk 00:15:21]} {[%emt 00:00:03]} c6 {[%clk 00:15:18]} {[%emt 00:00:04]} 6.
Bd3 {[%clk 00:15:24]} {[%emt 00:00:02]} Bd6 {[%clk 00:15:21]} {[%emt 00:00:02]}
7. Nge2 {[%clk 00:15:17]} {[%emt 00:00:12]} O-O {[%clk 00:15:17]} {[%emt
00:00:09]} 8. Qd2 {[%clk 00:15:21]} b5 {[%clk 00:14:59]} {[%emt 00:00:30]} 9.
O-O {[%clk 00:15:05]} {[%emt 00:00:15]} Bg4 {[%clk 00:14:42]} {[%emt 00:00:21]}
10. f3 {[%clk 00:14:51]} {[%emt 00:00:20]} Bh5 {[%clk 00:14:45]} {[%emt
00:00:02]} 11. Bf4 {[%clk 00:14:54]} {[%emt 00:00:03]} Bg6 {[%clk 00:13:59]}
{[%emt 00:00:50]} 12. Rae1 {[%clk 00:13:42]} {[%emt 00:01:16]} Bxf4 {[%clk
00:12:41]} {[%emt 00:01:23]} 13. Nxf4 {[%clk 00:13:46]} {[%emt 00:00:02]} Bxd3
{[%clk 00:12:22]} {[%emt 00:00:24]} 14. Nxd3 {[%clk 00:13:49]} Nbd7 {[%clk
00:12:21]} {[%emt 00:00:08]} 15. Ne5 {[%clk 00:13:21]} {[%emt 00:00:32]} Qc7
{[%clk 00:10:57]} {[%emt 00:01:30]} 16. Re2 {[%clk 00:12:26]} {[%emt 00:01:00]}
Rfe8 {[%clk 00:10:05]} {[%emt 00:00:56]} 17. Rfe1 {[%clk 00:12:30]} Re6 {[%clk
00:07:03]} {[%emt 00:03:09]} 18. Nxd7 {[%clk 00:10:57]} {[%emt 00:01:38]} Qxd7
{[%clk 00:06:54]} {[%emt 00:00:14]} 19. Rxe6 {[%clk 00:10:57]} {[%emt
00:00:05]} fxe6 {[%clk 00:06:56]} {[%emt 00:00:03]} 20. Nd1 {[%clk 00:10:51]}
{[%emt 00:00:11]} Qd6 {[%clk 00:06:41]} {[%emt 00:00:20]} 21. Qe2 {[%clk
00:10:41]} {[%emt 00:00:14]} Re8 {[%clk 00:06:32]} {[%emt 00:00:16]} 22. Nf2
{[%clk 00:10:44]} {[%emt 00:00:02]} Kf7 {[%clk 00:05:01]} {[%emt 00:01:35]} 23.
Nd3 {[%clk 00:10:46]} {[%emt 00:00:03]} Nd7 {[%clk 00:05:02]} {[%emt 00:00:03]}
24. Qe3 {[%clk 00:10:12]} {[%emt 00:00:40]} a5 {[%clk 00:04:16]} {[%emt
00:00:51]} 25. c3 {[%clk 00:10:11]} {[%emt 00:00:06]} Kg8 {[%clk 00:03:07]}
{[%emt 00:01:14]} 26. g3 {[%clk 00:09:15]} {[%emt 00:01:01]} Re7 {[%clk
00:02:45]} {[%emt 00:00:27]} 27. f4 {[%clk 00:08:23]} {[%emt 00:00:56]} Kf7
{[%clk 00:01:54]} {[%emt 00:00:57]} 28. Ne5+ {[%clk 00:07:04]} {[%emt
00:01:23]} Nxe5 {[%clk 00:01:57]} {[%emt 00:00:03]} 29. dxe5 {[%clk 00:06:45]}
{[%emt 00:00:24]} Qc7 {[%clk 00:01:53]} {[%emt 00:00:09]} 30. Qc5 {[%clk
00:06:23]} {[%emt 00:00:27]} Qa7 {[%clk 00:01:46]} {[%emt 00:00:12]} 31. Qxa7
{[%clk 00:06:19]} {[%emt 00:00:09]} Rxa7 {[%clk 00:01:50]} {[%emt 00:00:02]} 32.
Kf2 {[%clk 00:06:15]} {[%emt 00:00:08]} c5 {[%clk 00:01:42]} {[%emt 00:00:12]}
33. Ke3 {[%clk 00:06:18]} {[%emt 00:00:02]} h5 {[%clk 00:01:27]} {[%emt
00:00:21]} 34. h3 {[%clk 00:06:21]} {[%emt 00:00:02]} b4 {[%clk 00:01:07]}
{[%emt 00:00:25]} 35. g4 {[%clk 00:06:09]} {[%emt 00:00:17]} h4 {[%clk
00:00:55]} {[%emt 00:00:17]} 36. f5 {[%clk 00:06:11]} {[%emt 00:00:03]} bxc3
{[%clk 00:00:40]} {[%emt 00:00:20]} 37. bxc3 {[%clk 00:06:12]} {[%emt
00:00:03]} Rb7 {[%clk 00:00:42]} {[%emt 00:00:04]} 38. Re2 {[%clk 00:04:54]}
{[%emt 00:01:23]} Rb1 {[%clk 00:00:43]} {[%emt 00:00:04]} 39. Rc2 {[%clk
00:04:32]} {[%emt 00:00:27]} Rh1 {[%clk 00:00:16]} {[%emt 00:00:31]} 40. Kf4
{[%clk 00:04:29]} {[%emt 00:00:09]} Rxh3 {[%clk 00:00:14]} {[%emt 00:00:07]} 41.
Kg5 {[%clk 00:04:10]} {[%emt 00:00:24]} Rh1 {[%clk 00:00:09]} {[%emt 00:00:10]}
42. Rb2 {[%clk 00:04:14]} h3 {[%clk 00:00:07]} {[%emt 00:00:08]} 43. f6 {[%clk
00:03:47]} {[%emt 00:00:32]} gxf6+ 44. exf6 {[%clk 00:03:51]} Rf1 {[%emt
00:01:02]} 1-0

[Event "Nové Hrady - Rapid A"]
[Site "Nové Hrady, Czech Republic"]
[Date "2024.08.10"]
[Round "7.3"]
[White "Rausch, Rudolf"]
[Black "Steinbauer, Sebastián"]
[Result "0-1"]
[TimeControl "2x15min+5s"]
[WhiteFideId "1639455"]
[BlackFideId "399272"]
[WhiteElo "1838"]
[BlackElo "2018"]

1. d4 {[%clk 00:15:10]} {[%emt 00:00:18]} g6 {[%clk 00:15:06]} {[%emt
00:00:05]} 2. Nf3 {[%clk 00:15:09]} {[%emt 00:00:05]} Bg7 {[%clk 00:15:10]} 3.
c4 {[%clk 00:15:03]} {[%emt 00:00:12]} e6 {[%clk 00:15:14]} {[%emt 00:00:02]} 4.
Nc3 {[%clk 00:15:06]} {[%emt 00:00:02]} Ne7 {[%clk 00:15:18]} 5. Bf4 {[%clk
00:14:42]} {[%emt 00:00:28]} c6 {[%clk 00:15:10]} {[%emt 00:00:13]} 6. e3
{[%clk 00:14:40]} {[%emt 00:00:07]} O-O {[%clk 00:15:13]} {[%emt 00:00:03]} 7.
Be2 {[%clk 00:14:41]} {[%emt 00:00:04]} d5 {[%clk 00:15:16]} 8. cxd5 {[%clk
00:14:29]} {[%emt 00:00:18]} Nxd5 {[%clk 00:15:13]} {[%emt 00:00:08]} 9. Nxd5
{[%clk 00:14:29]} {[%emt 00:00:05]} exd5 {[%clk 00:15:09]} {[%emt 00:00:09]} 10.
O-O {[%clk 00:14:31]} {[%emt 00:00:03]} Bf5 {[%clk 00:15:10]} {[%emt 00:00:04]}
11. h3 {[%clk 00:14:27]} {[%emt 00:00:09]} Nd7 {[%clk 00:15:13]} {[%emt
00:00:02]} 12. Bd3 {[%clk 00:13:59]} {[%emt 00:00:33]} Be4 {[%clk 00:15:08]}
{[%emt 00:00:10]} 13. Bxe4 {[%clk 00:13:43]} {[%emt 00:00:21]} dxe4 {[%clk
00:15:12]} {[%emt 00:00:02]} 14. Nd2 {[%clk 00:13:27]} {[%emt 00:00:20]} Re8
{[%clk 00:15:13]} {[%emt 00:00:04]} 15. Rc1 {[%clk 00:13:11]} {[%emt 00:00:21]}
Nb6 {[%clk 00:15:12]} {[%emt 00:00:07]} 16. b3 {[%clk 00:13:07]} {[%emt
00:00:09]} Nd5 {[%clk 00:15:06]} {[%emt 00:00:10]} 17. Bg3 {[%clk 00:13:00]}
{[%emt 00:00:11]} Qg5 {[%clk 00:15:03]} {[%emt 00:00:09]} 18. Nc4 {[%clk
00:11:57]} {[%emt 00:01:08]} Re6 {[%clk 00:14:32]} {[%emt 00:00:35]} 19. Bh2
{[%clk 00:10:59]} {[%emt 00:01:03]} Nb4 {[%clk 00:14:31]} {[%emt 00:00:07]} 20.
a3 {[%clk 00:10:40]} {[%emt 00:00:24]} Nd3 {[%clk 00:14:34]} {[%emt 00:00:02]}
21. Rc2 {[%clk 00:10:40]} {[%emt 00:00:05]} Qd5 {[%clk 00:14:12]} {[%emt
00:00:24]} 22. b4 {[%clk 00:10:21]} {[%emt 00:00:27]} b5 {[%clk 00:12:46]}
{[%emt 00:01:31]} 23. Nb2 {[%clk 00:10:24]} Nxb2 {[%clk 00:12:46]} {[%emt
00:00:05]} 24. Rxb2 {[%clk 00:10:26]} {[%emt 00:00:03]} a5 {[%clk 00:12:50]}
{[%emt 00:00:03]} 25. Rc2 {[%clk 00:10:09]} {[%emt 00:00:21]} axb4 {[%clk
00:12:46]} {[%emt 00:00:09]} 26. axb4 {[%clk 00:10:00]} {[%emt 00:00:14]} Ra4
{[%clk 00:12:44]} {[%emt 00:00:07]} 27. Rc5 {[%clk 00:09:50]} {[%emt 00:00:15]}
Qd7 {[%clk 00:10:53]} {[%emt 00:01:56]} 28. Qb3 {[%clk 00:09:10]} {[%emt
00:00:45]} Qb7 {[%clk 00:09:44]} {[%emt 00:01:14]} 29. Rfc1 {[%clk 00:08:36]}
{[%emt 00:00:38]} Bf8 {[%clk 00:09:20]} {[%emt 00:00:29]} 30. d5 {[%clk
00:07:53]} {[%emt 00:00:47]} cxd5 {[%clk 00:08:33]} {[%emt 00:00:54]} 31. Rxd5
{[%clk 00:06:13]} {[%emt 00:01:44]} Rxb4 {[%clk 00:08:28]} {[%emt 00:00:10]} 32.
Qd1 {[%clk 00:06:05]} {[%emt 00:00:12]} Rc4 {[%clk 00:08:02]} {[%emt 00:00:32]}
33. Rxc4 {[%clk 00:05:29]} {[%emt 00:00:41]} bxc4 {[%clk 00:08:05]} {[%emt
00:00:02]} 34. Bg3 {[%clk 00:05:30]} {[%emt 00:00:05]} Rb6 {[%clk 00:07:59]}
{[%emt 00:00:10]} 35. Kh2 {[%emt 00:00:19]} c3 {[%emt 00:00:16]} 36. Rd7 {[%emt
00:00:45]} c2 {[%emt 00:00:34]} 37. Qd4 {[%clk 00:04:58]} {[%emt 00:00:01]}
Qxd7 {[%emt 00:00:12]} 38. Qxd7 {[%clk 00:04:57]} {[%emt 00:00:03]} c1=Q {[%clk
00:06:59]} {[%emt 00:00:04]} 39. Qd8 {[%clk 00:04:52]} {[%emt 00:00:09]} Qc6
{[%clk 00:06:49]} {[%emt 00:00:16]} 40. Bf4 {[%clk 00:04:12]} {[%emt 00:00:45]}
Rb7 {[%clk 00:06:37]} {[%emt 00:00:17]} 41. g3 {[%clk 00:04:05]} {[%emt
00:00:12]} Rd7 {[%clk 00:06:39]} {[%emt 00:00:03]} 42. Qb8 {[%clk 00:03:59]}
{[%emt 00:00:10]} Rd2 {[%clk 00:06:27]} {[%emt 00:00:17]} 43. Bh6 {[%clk
00:03:40]} {[%emt 00:00:24]} Qd6 {[%clk 00:06:31]} {[%emt 00:00:02]} 44. Qxd6
{[%clk 00:03:08]} {[%emt 00:00:37]} Bxd6 {[%clk 00:06:26]} {[%emt 00:00:10]}
0-1